fUST/lending_fUST_20240930
["ID","MTS","AMOUNT","RATE_DAILY","PERIOD"]
[339530472,1727680772088,500.0,0.00014111,2]
[339530473,1727680772128,500.0,0.00014111,2]
[339530474,1727680772167,500.0,0.00014111,2]
[339530475,1727680772460,500.0,0.00014111,2]
[339530476,1727680772498,500.0,0.00014111,2]
[339530477,1727680772974,500.0,0.00014111,2]
[339530478,1727680773027,500.0,0.00014111,2]
[339530479,1727680773072,500.0,0.00014111,2]
[339530480,1727680773131,179.53622725,0.00014111,2]
[339530481,1727680773280,500.0,0.00014111,2]
[339530482,1727680773752,500.0,0.00014111,2]
[339530483,1727680773791,500.0,0.00014111,2]
[339530484,1727680773850,500.0,0.00014111,2]
[339530485,1727680773905,500.0,0.00014111,2]
[339530486,1727680774028,500.0,0.00014111,2]
[339530487,1727680774158,500.0,0.00014111,2]
[339530488,1727680774362,500.0,0.00014111,2]
[339530489,1727680774491,500.0,0.00014111,2]
[339530490,1727680774694,500.0,0.00014111,2]
[339530491,1727680774803,500.0,0.00014111,2]
[339530492,1727680775089,500.0,0.00014111,2]
[339530493,1727680775125,500.0,0.00014111,2]
[339530494,1727680775410,500.0,0.00014111,2]
[339530495,1727680775537,500.0,0.00014111,2]
[339530496,1727680775598,366.1538155,0.00014022,2]
[339530497,1727680775717,500.0,0.00014111,2]
[339530498,1727680775763,500.0,0.00014111,2]
[339530499,1727680775811,500.0,0.00014111,2]
[339530500,1727680775841,336.64704206,0.00014111,2]
[339530501,1727680775884,500.0,0.00014111,2]
[339530502,1727680775923,500.0,0.00014111,2]
[339530503,1727680775960,500.0,0.00014111,2]
[339530504,1727680776003,500.0,0.00014111,2]
[339530505,1727680776033,500.0,0.00014111,2]
[339530506,1727680776076,500.0,0.00014111,2]
[339530507,1727680776143,500.0,0.00014111,2]
[339530508,1727680776180,500.0,0.00014111,2]
[339530509,1727680776210,500.0,0.00014111,2]
[339530510,1727680776248,500.0,0.00014111,2]
[339530511,1727680776349,500.0,0.00014111,2]
[339530512,1727680776379,500.0,0.00014111,2]
[339530513,1727680776413,500.0,0.00014111,2]
[339530514,1727680776453,500.0,0.00014111,2]
[339530515,1727680776490,500.0,0.00014111,2]
[339530516,1727680776527,500.0,0.00014111,2]
[339530517,1727680776579,500.0,0.00014111,2]
[339530518,1727680776623,500.0,0.00014111,2]
[339530519,1727680776686,500.0,0.00014111,2]
[339530520,1727680776727,500.0,0.00014111,2]
[339530521,1727680776785,500.0,0.00014111,2]
[339530522,1727680776903,500.0,0.00014111,2]
[339530523,1727680776953,252.62855643,0.00014111,2]
[339530524,1727680777018,500.0,0.00014111,2]
[339530525,1727680777147,500.0,0.00014111,2]
[339530526,1727680777228,500.0,0.00014111,2]
[339530527,1727680788204,500.0,0.00014111,2]
[339530528,1727680788242,500.0,0.00014111,2]
[339530529,1727680788284,500.0,0.00014111,2]
[339530530,1727680788317,500.0,0.00014111,2]
[339530531,1727680788351,500.0,0.00014111,2]
[339530532,1727680796718,162.0,0.0002189,120]
[339530534,1727680837261,176.60570179,0.00014022,2]
[339530535,1727680860707,300.0,0.00014111,2]
[339530536,1727680865779,758.582818,0.00014022,2]
[339530537,1727680872883,1180.5122957,0.00014023,2]
[339530538,1727680920575,303.8063626,0.00013122,2]
[339530539,1727680920603,300.0,0.00014111,2]
[339530540,1727680923676,300.0,0.00014111,2]
[339530541,1727680930028,150.112233,0.000141,2]
[339530542,1727680930403,150.112233,0.000141,2]
[339530544,1727680972030,371.26577584,0.00014012,2]
[339530545,1727680980591,300.0,0.00014111,2]
[339530546,1727680983390,300.0,0.00014111,2]
[339530548,1727681040673,300.0,0.00014111,2]
[339530549,1727681043079,300.0,0.00014111,2]
[339530550,1727681053029,-17576.1498,0.00014112,2]
[339530551,1727681071162,663.75996575,0.00014012,2]
[339530552,1727681072348,500.0,0.00014111,2]
[339530553,1727681072385,567.06367487,0.00014111,2]
[339530554,1727681072470,173.30354847,0.00014111,2]
[339530555,1727681072645,625.13790402,0.00014111,2]
[339530556,1727681072883,500.0,0.00014111,2]
[339530557,1727681073009,649.91386921,0.00014111,2]
[339530558,1727681073043,500.0,0.00014111,2]
[339530559,1727681073163,500.0,0.00014111,2]
[339530560,1727681073296,500.0,0.00014111,2]
[339530561,1727681074828,500.0,0.00014111,2]
[339530562,1727681074867,500.0,0.00014111,2]
[339530563,1727681074914,500.0,0.00014111,2]
[339530564,1727681074946,500.0,0.00014111,2]
[339530565,1727681074988,617.35048137,0.00014111,2]
[339530566,1727681075018,500.0,0.00014111,2]
[339530567,1727681075626,521.16709245,0.00014111,2]
[339530568,1727681075656,500.0,0.00014111,2]
[339530569,1727681075688,330.67799313,0.00014111,2]
[339530570,1727681075720,500.0,0.00014111,2]
[339530571,1727681075754,500.0,0.00014111,2]
[339530572,1727681075798,500.0,0.00014111,2]
[339530573,1727681075839,500.0,0.00014111,2]
[339530574,1727681075869,500.0,0.00014111,2]
[339530575,1727681075945,500.0,0.00014111,2]
[339530576,1727681075985,500.0,0.00014111,2]
[339530577,1727681076023,500.0,0.00014111,2]
[339530578,1727681076084,500.0,0.00014111,2]
[339530579,1727681076129,500.0,0.00014111,2]
[339530580,1727681076174,500.0,0.00014111,2]
[339530581,1727681076208,500.0,0.00014111,2]
[339530582,1727681076244,500.0,0.00014111,2]
[339530583,1727681076308,500.0,0.00014111,2]
[339530584,1727681076356,500.0,0.00014111,2]
[339530585,1727681081189,3000.0,0.00014,2]
[339530586,1727681100722,300.0,0.00014111,2]
[339530587,1727681103802,300.0,0.00014111,2]
[339530588,1727681106449,1119.72364898,0.00014023,2]
[339530592,1727681151360,1021.516581,0.00013699,2]
[339530593,1727681160565,300.0,0.00014111,2]
[339530594,1727681162381,300.0,0.00014111,2]
[339530595,1727681207565,1325.7469724,0.00013218,2]
[339530596,1727681220680,300.0,0.00014111,2]
[339530597,1727681222591,300.0,0.00014111,2]
[339530598,1727681225755,1239.1461415,0.00014015,2]
[339530599,1727681276624,1520.05024136,0.00014012,2]
[339530600,1727681280795,300.0,0.00014111,2]
[339530601,1727681291271,12244.9213662,0.00014102,2]
[339530602,1727681291300,28591.3185768,0.00014102,2]
[339530603,1727681291352,30627.1799573,0.00014102,2]
[339530604,1727681291440,61254.3599146,0.00014103,2]
[339530605,1727681293706,110770.672856,0.00014102,2]
[339530606,1727681293789,83078.0046423,0.00014102,2]
[339530607,1727681293900,138463.34107,0.00014103,2]
[339530609,1727681325458,234.698203,0.00013699,2]
[339530610,1727681340664,300.0,0.00014111,2]
[339530611,1727681342951,300.0,0.00014111,2]
[339530628,1727681402606,300.0,0.00014111,2]
[339530629,1727681406139,500.0,0.00014111,2]
[339530630,1727681406335,221.104974,0.00013211,2]
[339530631,1727681406537,221.104974,0.00013247,2]
[339530632,1727681406778,221.104974,0.00013283,2]
[339530633,1727681407006,221.104974,0.00013319,2]
[339530634,1727681407416,221.104974,0.00013355,2]
[339530635,1727681407651,221.104974,0.00013392,2]
[339530636,1727681407861,221.104974,0.00013428,2]
[339530637,1727681408076,221.104974,0.00013464,2]
[339530638,1727681408299,221.104974,0.000135,2]
[339530639,1727681408788,221.104974,0.00013537,2]
[339530640,1727681408988,221.104974,0.00013573,2]
[339530641,1727681409222,221.104974,0.00013609,2]
[339530642,1727681409446,221.104974,0.00013645,2]
[339530643,1727681409734,221.104974,0.00013681,2]
[339530646,1727681409929,221.104974,0.00013718,2]
[339530648,1727681410139,221.104974,0.00013754,2]
[339530649,1727681410372,221.104974,0.0001379,2]
[339530650,1727681411090,221.104974,0.00013826,2]
[339530651,1727681411138,221.104974,0.00013863,2]
[339530652,1727681411233,221.104974,0.00013899,2]
[339530653,1727681411381,506.61876288,0.00014012,2]
[339530654,1727681418102,500.0,0.00014111,2]
[339530655,1727681418663,500.0,0.00014111,2]
[339530656,1727681418941,500.0,0.00014111,2]
[339530657,1727681423418,500.0,0.00014111,2]
[339530658,1727681423739,500.0,0.00014111,2]
[339530659,1727681428507,500.0,0.00014111,2]
[339530660,1727681429656,500.0,0.00014111,2]
[339530661,1727681431478,500.0,0.00014111,2]
[339530712,1727681432761,-2237.31762723,0.00014112,2]
[339530713,1727681432772,-6384.39307277,0.00014112,2]
[339530714,1727681432818,500.0,0.00014111,2]
[339530715,1727681433027,396.94457241,0.00014111,2]
[339530716,1727681433073,500.0,0.00014111,2]
[339530717,1727681433141,250.0,0.00014111,2]
[339530718,1727681435935,500.0,0.00014111,2]
[339530757,1727681438183,-44660.90685603,0.00014112,2]
[339530759,1727681438192,-524.20297664,0.00014112,2]
[339530760,1727681438201,-500.0,0.00014112,2]
[339530761,1727681438211,-500.0,0.00014112,2]
[339530762,1727681438221,-500.0,0.00014112,2]
[339530763,1727681438231,-500.0,0.00014112,2]
[339530764,1727681438240,-500.0,0.00014112,2]
[339530765,1727681438250,-500.0,0.00014112,2]
[339530766,1727681438259,-500.0,0.00014112,2]
[339530767,1727681438269,-500.0,0.00014112,2]
[339530768,1727681438278,-500.0,0.00014112,2]
[339530769,1727681438287,-606.96,0.00014112,2]
[339530770,1727681438297,-500.0,0.00014112,2]
[339530771,1727681438306,-500.0,0.00014112,2]
[339530772,1727681438315,-500.0,0.00014112,2]
[339530773,1727681438324,-500.0,0.00014112,2]
[339530774,1727681438335,-882.08,0.00014112,2]
[339530775,1727681438344,-500.0,0.00014112,2]
[339530776,1727681438353,-619.22,0.00014112,2]
[339530777,1727681438362,-500.0,0.00014112,2]
[339530778,1727681438371,-500.0,0.00014112,2]
[339530779,1727681438380,-681.32,0.00014112,2]
[339530780,1727681438390,-644.5,0.00014112,2]
[339530781,1727681438399,-500.0,0.00014112,2]
[339530782,1727681438408,-500.0,0.00014112,2]
[339530783,1727681438417,-532.54,0.00014112,2]
[339530784,1727681438426,-500.0,0.00014112,2]
[339530785,1727681438435,-479.72077132,0.00014112,2]
[339530786,1727681438445,-500.0,0.00014112,2]
[339530787,1727681438455,-2595.01,0.00014112,2]
[339530788,1727681438464,-500.0,0.00014112,2]
[339530789,1727681438474,-500.0,0.00014112,2]
[339530790,1727681438483,-500.0,0.00014112,2]
[339530791,1727681438492,-500.0,0.00014112,2]
[339530792,1727681438502,-1069.08,0.00014112,2]
[339530793,1727681438511,-591.66575468,0.00014112,2]
[339530794,1727681438520,-500.0,0.00014112,2]
[339530795,1727681438530,-1067.73,0.00014112,2]
[339530796,1727681438539,-500.0,0.00014112,2]
[339530797,1727681438548,-500.0,0.00014112,2]
[339530798,1727681438557,-500.0,0.00014112,2]
[339530799,1727681438567,-548.62,0.00014112,2]
[339530800,1727681438577,-500.0,0.00014112,2]
[339530801,1727681438590,-500.0,0.00014112,2]
[339530802,1727681438599,-500.0,0.00014112,2]
[339530803,1727681438608,-500.0,0.00014112,2]
[339530804,1727681438617,-500.0,0.00014112,2]
[339530805,1727681438627,-185.78234481,0.00014112,2]
[339530806,1727681438636,-181.45469363,0.00014112,2]
[339530807,1727681438646,-500.0,0.00014112,2]
[339530808,1727681438655,-500.0,0.00014112,2]
[339530809,1727681438664,-500.0,0.00014112,2]
[339530810,1727681438673,-500.0,0.00014112,2]
[339530811,1727681438682,-500.0,0.00014112,2]
[339530812,1727681438691,-500.0,0.00014112,2]
[339530813,1727681438701,-500.0,0.00014112,2]
[339530814,1727681438710,-500.0,0.00014112,2]
[339530815,1727681438719,-532.26012882,0.00014112,2]
[339530816,1727681438729,-500.0,0.00014112,2]
[339530817,1727681438738,-500.0,0.00014112,2]
[339530818,1727681438748,-578.21,0.00014112,2]
[339530819,1727681438758,-500.0,0.00014112,2]
[339530820,1727681438767,-548.16,0.00014112,2]
[339530821,1727681438776,-500.0,0.00014112,2]
[339530822,1727681438786,-500.0,0.00014112,2]
[339530823,1727681438795,-500.0,0.00014112,2]
[339530824,1727681438804,-539.31935583,0.00014112,2]
[339530825,1727681438814,-500.0,0.00014112,2]
[339530826,1727681438823,-1777.39,0.00014112,2]
[339530827,1727681438834,-500.0,0.00014112,2]
[339530828,1727681438843,-757.67,0.00014112,2]
[339530829,1727681438852,-500.0,0.00014112,2]
[339530830,1727681438861,-500.0,0.00014112,2]
[339530831,1727681438874,-500.0,0.00014112,2]
[339530832,1727681438883,-2008.58,0.00014112,2]
[339530833,1727681438893,-519.09,0.00014112,2]
[339530834,1727681438902,-500.0,0.00014112,2]
[339530835,1727681438912,-500.0,0.00014112,2]
[339530836,1727681438922,-634.32,0.00014112,2]
[339530837,1727681438931,-500.0,0.00014112,2]
[339530838,1727681438941,-504.37221291,0.00014112,2]
[339530839,1727681438950,-500.0,0.00014112,2]
[339530840,1727681438960,-500.0,0.00014112,2]
[339530841,1727681438969,-500.0,0.00014112,2]
[339530842,1727681438978,-500.0,0.00014112,2]
[339530843,1727681438988,-500.0,0.00014112,2]
[339530844,1727681438997,-536.79,0.00014112,2]
[339530845,1727681439007,-500.0,0.00014112,2]
[339530846,1727681439016,-500.0,0.00014112,2]
[339530847,1727681439027,-500.0,0.00014112,2]
[339530848,1727681439037,-500.0,0.00014112,2]
[339530849,1727681439046,-210.59884677,0.00014112,2]
[339530850,1727681439056,-506.33931403,0.00014112,2]
[339530851,1727681439065,-500.0,0.00014112,2]
[339530852,1727681439074,-500.0,0.00014112,2]
[339530853,1727681439085,-500.0,0.00014112,2]
[339530854,1727681439095,-2433.54,0.00014112,2]
[339530855,1727681439104,-549.2,0.00014112,2]
[339530856,1727681439114,-29674.95,0.00014112,2]
[339530857,1727681439124,-500.0,0.00014112,2]
[339530858,1727681439133,-500.0,0.00014112,2]
[339530859,1727681439143,-500.0,0.00014112,2]
[339530860,1727681439152,-1320.62,0.00014112,2]
[339530861,1727681439161,-4317.23,0.00014112,2]
[339530862,1727681439171,-500.0,0.00014112,2]
[339530863,1727681439181,-500.0,0.00014112,2]
[339530864,1727681439190,-1640.88,0.00014112,2]
[339530865,1727681439199,-500.0,0.00014112,2]
[339530866,1727681439208,-500.0,0.00014112,2]
[339530867,1727681439217,-500.0,0.00014112,2]
[339530868,1727681439227,-500.0,0.00014112,2]
[339530869,1727681439237,-500.0,0.00014112,2]
[339530870,1727681439246,-659.94,0.00014112,2]
[339530871,1727681439255,-977.41,0.00014112,2]
[339530872,1727681439265,-500.0,0.00014112,2]
[339530873,1727681439274,-500.0,0.00014112,2]
[339530874,1727681439283,-500.0,0.00014112,2]
[339530875,1727681439293,-500.0,0.00014112,2]
[339530876,1727681439302,-500.0,0.00014112,2]
[339530877,1727681439311,-500.0,0.00014112,2]
[339530878,1727681439320,-500.0,0.00014112,2]
[339530879,1727681439329,-500.0,0.00014112,2]
[339530880,1727681439339,-500.0,0.00014112,2]
[339530881,1727681439349,-500.0,0.00014112,2]
[339530882,1727681439358,-500.0,0.00014112,2]
[339530883,1727681439367,-542.53,0.00014112,2]
[339530884,1727681439377,-500.0,0.00014112,2]
[339530885,1727681439387,-500.0,0.00014112,2]
[339530886,1727681439397,-500.0,0.00014112,2]
[339530887,1727681439406,-1804.61,0.00014112,2]
[339530888,1727681439416,-500.0,0.00014112,2]
[339530889,1727681439425,-178.13007744,0.00014112,2]
[339530890,1727681439434,-500.0,0.00014112,2]
[339530891,1727681439444,-1742.13,0.00014112,2]
[339530892,1727681439453,-500.0,0.00014112,2]
[339530893,1727681439462,-500.0,0.00014112,2]
[339530894,1727681439472,-500.0,0.00014112,2]
[339530895,1727681439481,-500.0,0.00014112,2]
[339530896,1727681439490,-500.0,0.00014112,2]
[339530897,1727681439499,-500.0,0.00014112,2]
[339530898,1727681439509,-500.0,0.00014112,2]
[339530899,1727681439519,-500.0,0.00014112,2]
[339530900,1727681439528,-500.0,0.00014112,2]
[339530901,1727681439537,-500.0,0.00014112,2]
[339530902,1727681439546,-500.0,0.00014112,2]
[339530903,1727681439555,-680.83,0.00014112,2]
[339530904,1727681439564,-500.0,0.00014112,2]
[339530905,1727681439573,-720.74,0.00014112,2]
[339530906,1727681439584,-500.0,0.00014112,2]
[339530907,1727681439594,-500.0,0.00014112,2]
[339530908,1727681439603,-500.0,0.00014112,2]
[339530909,1727681439612,-500.0,0.00014112,2]
[339530910,1727681439621,-654.13,0.00014112,2]
[339530911,1727681439631,-500.0,0.00014112,2]
[339530912,1727681439640,-500.0,0.00014112,2]
[339530913,1727681439649,-500.0,0.00014112,2]
[339530914,1727681439658,-500.0,0.00014112,2]
[339530915,1727681439667,-500.0,0.00014112,2]
[339530916,1727681439677,-500.0,0.00014112,2]
[339530917,1727681439686,-500.0,0.00014112,2]
[339530918,1727681439695,-500.0,0.00014112,2]
[339530919,1727681439704,-266.64887089,0.00014112,2]
[339530920,1727681439713,-500.0,0.00014112,2]
[339530921,1727681439723,-666.8,0.00014112,2]
[339530922,1727681439732,-734.87,0.00014112,2]
[339530923,1727681439741,-500.0,0.00014112,2]
[339530924,1727681439750,-500.0,0.00014112,2]
[339530925,1727681439759,-500.0,0.00014112,2]
[339530926,1727681439769,-500.0,0.00014112,2]
[339530927,1727681439779,-500.0,0.00014112,2]
[339530928,1727681439788,-500.0,0.00014112,2]
[339530929,1727681439798,-500.0,0.00014112,2]
[339530930,1727681439807,-500.0,0.00014112,2]
[339530932,1727681439817,-500.0,0.00014112,2]
[339530934,1727681439826,-562.16,0.00014112,2]
[339530936,1727681439835,-500.0,0.00014112,2]
[339530938,1727681439845,-500.0,0.00014112,2]
[339530940,1727681439854,-500.0,0.00014112,2]
[339530942,1727681439863,-672.32,0.00014112,2]
[339530944,1727681439875,-565.82,0.00014112,2]
[339530946,1727681439884,-500.0,0.00014112,2]
[339530948,1727681439894,-500.0,0.00014112,2]
[339530950,1727681439903,-500.0,0.00014112,2]
[339530952,1727681439913,-500.0,0.00014112,2]
[339530953,1727681439923,-653.83,0.00014112,2]
[339530955,1727681439933,-500.0,0.00014112,2]
[339530957,1727681439942,-500.0,0.00014112,2]
[339530959,1727681439953,-500.0,0.00014112,2]
[339530960,1727681439962,-500.0,0.00014112,2]
[339530961,1727681439972,-500.0,0.00014112,2]
[339530962,1727681439981,-500.0,0.00014112,2]
[339530963,1727681439990,-500.0,0.00014112,2]
[339530964,1727681439999,-500.0,0.00014112,2]
[339530965,1727681440009,-500.0,0.00014112,2]
[339530966,1727681440018,-500.0,0.00014112,2]
[339530967,1727681440028,-1317.96,0.00014112,2]
[339530968,1727681440037,-500.0,0.00014112,2]
[339530969,1727681440047,-500.0,0.00014112,2]
[339530970,1727681440057,-500.0,0.00014112,2]
[339530971,1727681440067,-500.0,0.00014112,2]
[339530972,1727681440077,-1520.4,0.00014112,2]
[339530973,1727681440087,-1061.16,0.00014112,2]
[339530974,1727681440096,-500.0,0.00014112,2]
[339530975,1727681440106,-500.0,0.00014112,2]
[339530976,1727681440116,-500.0,0.00014112,2]
[339530977,1727681440125,-500.0,0.00014112,2]
[339530978,1727681440135,-500.0,0.00014112,2]
[339530979,1727681440144,-500.0,0.00014112,2]
[339530980,1727681440153,-500.0,0.00014112,2]
[339530981,1727681440163,-1152.77,0.00014112,2]
[339530982,1727681440172,-530.7,0.00014112,2]
[339530983,1727681440181,-530.7,0.00014112,2]
[339530984,1727681440191,-530.7,0.00014112,2]
[339530985,1727681440200,-500.0,0.00014112,2]
[339530986,1727681440209,-500.0,0.00014112,2]
[339530987,1727681440219,-500.0,0.00014112,2]
[339530988,1727681440228,-500.0,0.00014112,2]
[339530989,1727681440238,-3977.0,0.00014112,2]
[339530990,1727681440247,-3805.25,0.00014112,2]
[339530991,1727681440256,-500.0,0.00014112,2]
[339530992,1727681440267,-853.75,0.00014112,2]
[339530993,1727681440276,-500.0,0.00014112,2]
[339530994,1727681440285,-500.0,0.00014112,2]
[339530995,1727681440294,-500.0,0.00014112,2]
[339530996,1727681440304,-475.79286369,0.00014112,2]
[339530997,1727681440313,-500.0,0.00014112,2]
[339530998,1727681440323,-2204.93,0.00014112,2]
[339530999,1727681440332,-647.0,0.00014112,2]
[339531000,1727681440342,-853.17,0.00014112,2]
[339531001,1727681440351,-541.31,0.00014112,2]
[339531002,1727681440361,-1899.06,0.00014112,2]
[339531003,1727681440370,-540.30107797,0.00014112,2]
[339531004,1727681440379,-500.0,0.00014112,2]
[339531005,1727681440389,-500.0,0.00014112,2]
[339531006,1727681440398,-674.09,0.00014112,2]
[339531007,1727681440407,-1040.57,0.00014112,2]
[339531008,1727681440417,-500.0,0.00014112,2]
[339531009,1727681440426,-2182.35191673,0.00014112,2]
[339531010,1727681440436,-20418.1199715,0.00014113,2]
[339531011,1727681440445,-750.0,0.00014121,2]
[339531012,1727681440454,-500.0,0.00014121,2]
[339531013,1727681440650,-500.0,0.00014121,2]
[339531014,1727681440662,-500.0,0.00014121,2]
[339531015,1727681440672,-500.0,0.00014121,2]
[339531016,1727681440681,-155.27532265,0.00014121,2]
[339531017,1727681440691,-500.0,0.00014121,2]
[339531018,1727681440700,-500.0,0.00014121,2]
[339531019,1727681440710,-500.0,0.00014121,2]
[339531020,1727681440719,-500.0,0.00014121,2]
[339531021,1727681440729,-500.0,0.00014121,2]
[339531022,1727681440738,-500.0,0.00014121,2]
[339531023,1727681440748,-500.0,0.00014121,2]
[339531024,1727681440758,-500.0,0.00014121,2]
[339531025,1727681440767,-500.0,0.00014121,2]
[339531026,1727681440777,-544.55598393,0.00014121,2]
[339531027,1727681440787,-530.7,0.00014121,2]
[339531028,1727681440796,-530.7,0.00014121,2]
[339531029,1727681440806,-530.7,0.00014121,2]
[339531030,1727681440816,-500.0,0.00014122,2]
[339531031,1727681440825,-500.0,0.00014122,2]
[339531032,1727681440836,-500.0,0.00014122,2]
[339531033,1727681440845,-500.0,0.00014122,2]
[339531034,1727681440855,-500.0,0.00014122,2]
[339531035,1727681440864,-500.0,0.00014122,2]
[339531036,1727681440878,-500.0,0.00014122,2]
[339531037,1727681440888,-500.0,0.00014122,2]
[339531038,1727681440897,-500.0,0.00014122,2]
[339531039,1727681440907,-500.0,0.00014122,2]
[339531040,1727681440916,-500.0,0.00014122,2]
[339531041,1727681440926,-500.0,0.00014122,2]
[339531042,1727681440936,-519.13392717,0.00014122,2]
[339531043,1727681440945,-500.35,0.00014122,2]
[339531044,1727681440955,-265.80632412,0.00014122,2]
[339531045,1727681440964,-500.0,0.00014122,2]
[339531046,1727681440974,-500.0,0.00014122,2]
[339531047,1727681440984,-500.0,0.00014122,2]
[339531048,1727681440994,-500.0,0.00014122,2]
[339531049,1727681441004,-500.0,0.00014122,2]
[339531050,1727681441013,-500.0,0.00014122,2]
[339531051,1727681441023,-822.42,0.00014122,2]
[339531052,1727681441033,-454.71425714,0.00014122,2]
[339531053,1727681441042,-500.0,0.00014122,2]
[339531054,1727681441052,-500.0,0.00014122,2]
[339531055,1727681441062,-214.89894581,0.00014122,2]
[339531056,1727681441071,-500.0,0.00014122,2]
[339531057,1727681441081,-506.22862476,0.00014122,2]
[339531058,1727681441091,-500.0,0.00014122,2]
[339531059,1727681441100,-500.0,0.00014122,2]
[339531060,1727681441111,-500.0,0.00014122,2]
[339531061,1727681441121,-500.0,0.00014122,2]
[339531062,1727681441131,-500.0,0.00014122,2]
[339531063,1727681441141,-500.0,0.00014122,2]
[339531064,1727681441150,-500.0,0.00014122,2]
[339531065,1727681441161,-500.0,0.00014122,2]
[339531066,1727681441170,-500.0,0.00014122,2]
[339531067,1727681441180,-500.0,0.00014122,2]
[339531068,1727681441190,-500.0,0.00014122,2]
[339531069,1727681441199,-500.0,0.00014122,2]
[339531070,1727681441209,-812.65,0.00014122,2]
[339531071,1727681441219,-500.0,0.00014122,2]
[339531072,1727681441229,-500.0,0.00014122,2]
[339531073,1727681441239,-500.0,0.00014122,2]
[339531074,1727681441249,-500.0,0.00014122,2]
[339531075,1727681441259,-500.0,0.00014122,2]
[339531076,1727681441268,-500.0,0.00014122,2]
[339531077,1727681441278,-500.0,0.00014122,2]
[339531078,1727681441288,-328.24874825,0.00014122,2]
[339531079,1727681441298,-651.29,0.00014122,2]
[339531080,1727681441307,-504.50173127,0.00014122,2]
[339531081,1727681441316,-500.0,0.00014122,2]
[339531082,1727681441325,-500.0,0.00014122,2]
[339531083,1727681441337,-500.0,0.00014122,2]
[339531084,1727681441347,-500.0,0.00014122,2]
[339531085,1727681441356,-500.0,0.00014122,2]
[339531086,1727681441367,-500.0,0.00014122,2]
[339531087,1727681441377,-500.0,0.00014122,2]
[339531088,1727681441388,-500.0,0.00014122,2]
[339531089,1727681441398,-500.0,0.00014122,2]
[339531090,1727681441407,-500.0,0.00014122,2]
[339531091,1727681441417,-500.0,0.00014122,2]
[339531092,1727681441426,-500.0,0.00014122,2]
[339531093,1727681441436,-500.0,0.00014122,2]
[339531094,1727681441446,-500.0,0.00014122,2]
[339531095,1727681441456,-500.0,0.00014122,2]
[339531096,1727681441466,-1856.46,0.00014122,2]
[339531097,1727681441475,-1158.1,0.00014122,2]
[339531098,1727681441485,-500.0,0.00014122,2]
[339531099,1727681441494,-627.1,0.00014122,2]
[339531100,1727681441504,-500.0,0.00014122,2]